bitfinex-derivatives/quotes_SOLF0:USTF0_20240827
["timestamp","ask_amount","ask_price","bid_price","bid_amount"]
[1724722061335,0.04676461,158.91,158.89,9.69]
[1724722062327,0.04676461,158.91,158.9,3.1459]
[1724722064038,0.04676461,158.91,158.9,12.8359]
[1724722065239,0.04676461,158.91,158.9,3.1459]
[1724722065435,0.04676461,158.91,158.9,12.8359]
[1724722066942,0.04676461,158.91,158.9,3.1459]
[1724722067236,0.04676461,158.91,158.9,12.8359]
[1724722068237,0.04676461,158.91,158.9,3.1459]
[1724722069333,0.04676461,158.91,158.9,12.8359]
[1724722070527,9.73676461,158.91,158.87,0.04417261]
[1724722071139,9.69,158.89,158.87,0.04417261]
[1724722073730,3.13058835,158.9,158.87,0.04417261]
[1724722073941,12.82058835,158.9,158.87,0.04417261]
[1724722074133,0.04676461,158.91,158.87,0.04417261]
[1724722074534,0.04676461,158.91,158.88,9.69]
[1724722076338,9.69,158.9,158.87,0.04417261]
[1724722077241,3.19256461,158.91,158.88,9.69]
[1724722077242,0.04676461,158.91,158.88,9.69]
[1724722078542,0.04676461,158.91,158.88,12.8363]
[1724722079139,0.04676461,158.91,158.89,3.146]
[1724722079346,0.04676461,158.91,158.88,9.69]
[1724722080340,0.04676461,158.91,158.88,12.8362]
[1724722081446,0.04676461,158.91,158.89,3.1461]
[1724722082246,0.04676461,158.91,158.9,9.69]
[1724722082438,0.04676461,158.91,158.9,12.8359]
[1724722085854,0.04676461,158.91,158.9,15.86522611]
[1724722086152,0.04676461,158.91,158.9,15.86521407]
[1724722087153,0.04676461,158.91,158.9,12.8359]
[1724722088351,0.04676461,158.91,158.9,15.86481397]
[1724722088549,0.04676461,158.91,158.9,12.8359]
[1724722088853,0.04676461,158.91,158.9,15.86481397]
[1724722089156,0.04676461,158.91,158.9,12.8359]
[1724722089354,0.04676461,158.91,158.9,15.86467126]
[1724722092552,0.04676461,158.91,158.9,12.8359]
[1724722093846,0.04676461,158.91,158.9,3.1459]
[1724722098461,9.73676461,158.91,158.87,0.04417261]
[1724722098659,9.69,158.89,158.87,0.04417261]
[1724722098857,10.9911,158.9,158.87,0.04417261]
[1724722099056,1.3011,158.9,158.87,0.04417261]
[1724722101365,2.5413,158.9,158.87,0.04417261]
[1724722101865,5.6874,158.9,158.87,0.04417261]
[1724722103263,1.3011,158.9,158.87,0.04417261]
[1724722104369,4.447,158.9,158.87,0.04417261]
[1724722107260,9.69,158.89,158.87,0.04417261]
[1724722107863,12.8363,158.89,158.87,0.04417261]
[1724722128281,3.1463,158.89,158.87,0.04417261]
[1724722128482,12.8363,158.89,158.87,0.04417261]
[1724722130275,9.69,158.89,158.87,0.04417261]
[1724722131484,12.8361,158.89,158.87,0.04417261]
[1724722132381,3.1461,158.89,158.87,0.04417261]
[1724722132582,12.8361,158.89,158.87,0.04417261]
[1724722133889,3.1461,158.89,158.87,0.04417261]
[1724722134081,9.69,158.88,158.87,0.04417261]
[1724722136391,12.8363,158.88,158.87,0.04417261]
[1724722136598,9.69,158.88,158.79,4.08]
[1724722136883,9.69,158.84,158.78,67.36152914]
[1724722137792,0.04351479,158.83,158.79,0.04738326]
[1724722138287,0.04351479,158.83,158.8,3.1478]
[1724722138687,3.19239337,158.82,158.8,3.1478]
[1724722139691,0.04351479,158.83,158.8,3.1478]
[1724722139987,0.04351479,158.83,158.81,9.69]
[1724722141389,0.04351479,158.83,158.82,3.1475]
[1724722141591,0.04351479,158.83,158.79,9.73738326]
[1724722141894,0.04351479,158.83,158.82,3.1475]
[1724722142095,0.04351479,158.83,158.79,9.73738326]
[1724722143183,0.04351479,158.83,158.81,3.1476]
[1724722144797,0.04351479,158.83,158.79,9.73738326]
[1724722144798,0.04351479,158.83,158.8,3.1478]
[1724722144990,9.73351479,158.83,158.8,3.1478]
[1724722145297,9.73351479,158.83,158.81,3.1477]
[1724722145298,0.04351479,158.83,158.81,3.1477]
[1724722147388,0.04351479,158.83,158.82,3.1475]
[1724722153097,3.18106736,158.9,158.82,9.69]
[1724722153295,3.18106736,158.9,158.84,9.69]
[1724722154307,0.04735027,158.89,158.86,3.1466]
[1724722154802,0.04735027,158.89,158.87,3.1465]
[1724722155505,0.04735027,158.89,158.88,3.1463]
[1724722159902,0.04735027,158.89,158.88,12.8363]
[1724722160201,9.69,158.95,158.91,3.1456]
[1724722160400,12.78129222,158.95,158.88,9.69]
[1724722160609,12.78129222,158.95,158.9,3.1458]
[1724722161002,9.69,158.93,158.9,3.1458]
[1724722161203,9.69,158.93,158.91,0.04457087]
[1724722161613,9.69,158.92,158.91,0.04457087]
[1724722162311,12.8355,158.92,158.91,0.04457087]
[1724722162810,3.1455,158.92,158.91,0.04457087]
[1724722163005,12.8355,158.92,158.91,0.04457087]
[1724722164115,3.1458,158.91,158.87,3.1465]
[1724722164301,9.69,158.89,158.83,4.08]
[1724722164809,12.8362,158.89,158.86,3.1467]
[1724722165010,12.8362,158.89,158.83,4.08]
[1724722165316,9.69,158.87,158.86,0.04505455]
[1724722165805,0.0421963,158.89,158.86,0.04505455]
[1724722166010,9.69,158.88,158.86,0.04505455]
[1724722166313,9.69,158.88,158.86,3.19175455]
[1724722166808,9.69,158.88,158.86,0.04505455]
[1724722175815,3.16961928,158.87,158.86,0.04505455]
[1724722176211,12.85961928,158.87,158.86,0.04505455]
[1724722176911,9.69,158.87,158.86,0.04505455]
[1724722178114,12.86654328,158.87,158.86,0.04505455]
[1724722178314,9.69,158.87,158.86,0.04505455]
[1724722180327,12.8365,158.87,158.86,0.04505455]
[1724722180717,9.69,158.87,158.86,0.04505455]
[1724722182424,12.85186674,158.87,158.86,0.04505455]
[1724722186831,3.16186674,158.87,158.86,0.04505455]
[1724722187027,3.1464,158.88,158.86,0.04505455]
[1724722187931,12.8783963,158.89,158.86,0.04505455]
[1724722193333,12.8783963,158.89,158.86,3.19175455]
[1724722193733,12.8783963,158.89,158.86,0.04505455]
[1724722195336,9.69,158.87,158.86,0.04505455]
[1724722195629,15.91484151,158.87,158.86,0.04505455]
[1724722200037,3.07834151,158.87,158.86,0.04505455]
[1724722200226,0.0421963,158.89,158.86,0.04505455]
[1724722201334,0.0421963,158.89,158.88,3.1463]
[1724722203030,0.0421963,158.89,158.88,12.8363]
[1724722204635,1.2902,158.99,158.92,9.69]
[1724722205145,1.2902,158.99,158.93,9.69]
[1724722205437,10.9802,158.99,158.93,9.69]
[1724722205637,0.04493617,158.98,158.94,0.04494826]
[1724722206241,0.04493617,158.98,158.94,3.19004826]
[1724722206738,0.04493617,158.98,158.94,0.04494826]
[1724722207042,9.69,158.96,158.94,0.04494826]
[1724722207229,12.8349,158.96,158.94,0.04494826]
[1724722208038,9.69,158.95,158.94,0.04494826]
[1724722208935,12.8349,158.95,158.94,0.04494826]
[1724722209136,12.8349,158.95,158.88,4.08]
[1724722209137,9.69,158.95,158.88,4.08]
[1724722209336,9.69,158.92,158.88,4.08]
[1724722209742,12.76616249,158.92,158.88,4.08]
[1724722210043,12.76616249,158.92,158.86,4.08]
[1724722210044,9.69,158.91,158.86,4.08]
[1724722210541,9.69,158.91,158.88,0.04293559]
[1724722211040,12.90962026,158.91,158.88,0.04293559]
[1724722211835,9.69,158.89,158.88,0.04293559]
[1724722212340,12.8361,158.89,158.88,0.04293559]
[1724722212841,3.1467,158.86,158.8,3.1478]
[1724722213146,9.69,158.85,158.79,4.08]
[1724722213440,9.69,158.85,158.8,3.03276607]
[1724722213649,9.69,158.85,158.79,4.08]
[1724722214147,9.69,158.85,158.81,3.1477]
[1724722214337,0.04110299,158.84,158.81,3.1477]
[1724722215139,0.04110299,158.84,158.8,3.18922247]
[1724722216644,3.18840299,158.84,158.8,0.04132247]
[1724722216841,9.69,158.81,158.8,0.04132247]
[1724722218141,12.8377,158.81,158.8,0.04132247]
[1724722221247,3.148,158.8,158.76,3.1487]
[1724722221443,9.69,158.79,158.76,3.1487]
[1724722221945,9.69,158.77,158.71,4.08]
[1724722222244,0.04252144,158.76,158.73,3.1492]
[1724722222543,9.69,158.75,158.73,3.1492]
[1724722222949,9.69,158.75,158.72,0.04826575]
[1724722223148,9.69,158.74,158.72,0.04826575]
[1724722223543,3.1493,158.73,158.72,0.04826575]
[1724722224048,12.8391,158.74,158.72,0.04826575]
[1724722224646,9.69,158.74,158.72,0.04826575]
[1724722225951,0.04252144,158.76,158.72,0.04826575]
[1724722226151,9.73252144,158.76,158.72,0.04826575]
[1724722227344,9.73252144,158.76,158.73,3.1492]
[1724722227947,9.69,158.74,158.73,3.1492]
[1724722228152,0.04252144,158.76,158.73,3.1492]
[1724722228451,24.25252144,158.76,158.73,3.1492]
[1724722229044,27.40132144,158.76,158.72,3.19776575]
[1724722229738,27.40132144,158.76,158.72,0.04826575]
[1724722229739,3.149,158.75,158.72,0.04826575]
[1724722230743,3.149,158.75,158.72,3.19776575]
[1724722231349,27.40122144,158.76,158.72,3.19776575]
[1724722231553,27.40122144,158.76,158.73,3.1492]
[1724722231554,24.25252144,158.76,158.73,3.1492]
[1724722232952,0.04252144,158.76,158.72,0.04826575]
[1724722233554,0.04252144,158.76,158.75,3.1489]
[1724722234454,0.04252144,158.76,158.72,0.04826575]
[1724722234658,24.25252144,158.76,158.72,0.04826575]
[1724722234952,24.25252144,158.76,158.72,3.19766575]
[1724722235545,24.25252144,158.76,158.73,3.1493]
[1724722236654,24.25252144,158.76,158.74,3.149]
[1724722237358,0.04252144,158.76,158.74,3.149]
[1724722242663,0.04252144,158.76,158.75,3.1489]
[1724722253966,9.72252144,158.76,158.74,3.1491]
[1724722254162,9.68,158.75,158.72,0.04826575]
[1724722254364,9.68,158.73,158.72,0.04826575]
[1724722255363,9.68,158.73,158.72,3.19766575]
[1724722255965,24.18,158.74,158.72,0.04826575]
[1724722259567,24.18,158.74,158.65,1.2696]
[1724722259766,24.18,158.71,158.65,1.2696]
[1724722260268,27.33363173,158.71,158.65,1.2696]
[1724722260467,24.18,158.71,158.65,1.2696]
[1724722260775,0.04628654,158.7,158.66,0.04214777]
[1724722261370,0.04628654,158.7,158.69,3.1499]
[1724722278185,0.04628654,158.7,158.66,4.10214777]
[1724722278186,0.04628654,158.7,158.68,3.1503]
[1724722278388,9.68,158.69,158.68,3.1503]
[1724722280492,0.04628654,158.7,158.69,3.1501]
[1724722280694,0.04628654,158.7,158.69,12.8301]
[1724722281493,0.04628654,158.7,158.69,15.87188455]
[1724722281702,0.04628654,158.7,158.69,12.8301]
[1724722281997,0.04628654,158.7,158.69,15.87181734]
[1724722282392,9.68,158.76,158.72,3.1493]
[1724722282687,4.06,158.78,158.7,9.68]
[1724722282890,1.1931,158.83,158.74,9.68]
[1724722283196,1.1931,158.83,158.79,3.1481]
[1724722283197,10.8731,158.83,158.79,3.1481]
[1724722283392,10.8731,158.83,158.78,9.68]
[1724722283586,10.8731,158.83,158.79,0.04475511]
[1724722283587,1.23536503,158.83,158.79,0.04475511]
[1724722283989,0.04226503,158.83,158.79,0.04475511]
[1724722284699,0.04226503,158.83,158.8,3.1479]
[1724722286499,0.04226503,158.83,158.79,0.04475511]
[1724722287799,0.04226503,158.83,158.81,3.1476]
[1724722288590,0.04226503,158.83,158.82,3.1475]
[1724722302717,0.04226503,158.83,158.81,3.1477]
[1724722302917,0.04226503,158.83,158.79,0.04475511]
[1724722303724,0.04226503,158.83,158.82,3.1475]
[1724722311628,0.04226503,158.83,158.79,0.04475511]
[1724722312331,0.04226503,158.83,158.79,3.19275511]
[1724722312927,3.16298334,158.83,158.79,3.19275511]
[1724722313231,1.2054,158.82,158.79,3.19275511]
[1724722316636,1.2054,158.82,158.79,0.04475511]
[1724722316939,19.35,158.81,158.71,19.35]
[1724722317237,19.35,158.79,158.74,3.1491]
[1724722317732,19.35,158.79,158.76,3.1487]
[1724722318134,22.4978,158.81,158.76,3.1487]
[1724722318439,0.04137179,158.79,158.76,3.19592429]
[1724722319442,0.04137179,158.79,158.76,0.04722429]
[1724722319939,0.04137179,158.79,158.76,3.19592429]
[1724722320351,0.04137179,158.79,158.76,0.04722429]
[1724722320532,0.04137179,158.79,158.78,3.1483]
[1724722331452,0.04137179,158.79,158.77,3.1485]
[1724722331654,0.04137179,158.79,158.76,7.78722429]
[1724722332052,0.04137179,158.79,158.76,0.04722429]
[1724722332253,7.74,158.78,158.76,0.04722429]
[1724722334057,7.78137179,158.79,158.76,3.19592429]
[1724722335659,7.78137179,158.79,158.77,3.1485]
[1724722337462,0.04137179,158.79,158.77,3.1485]
[1724722337756,0.04137179,158.79,158.78,3.1483]
[1724722351269,40.8551,159.07,158.84,3.1471]
[1724722351270,4.06,158.89,158.84,3.1471]
[1724722351571,7.74,158.88,158.84,3.1471]
[1724722352568,7.74,158.88,158.85,3.1469]
[1724722352770,7.78696742,158.88,158.85,3.1469]
[1724722352967,7.78696742,158.88,158.86,3.1466]
[1724722355370,7.74,158.87,158.86,3.1466]
[1724722356271,0.04696742,158.88,158.87,3.1465]
[1724722357259,0.04696742,158.88,158.86,3.1467]
[1724722358865,0.04696742,158.88,158.87,3.1465]
[1724722365466,0.04696742,158.88,158.86,3.1467]
[1724722365670,0.04696742,158.88,158.84,0.04664212]
[1724722365671,7.74,158.87,158.84,0.04664212]
[1724722366870,7.74,158.87,158.85,3.1469]
[1724722367278,7.74,158.86,158.84,0.04664212]
[1724722367479,10.8868,158.86,158.84,0.04664212]
[1724722367875,7.74,158.86,158.84,0.04664212]
[1724722368272,3.1466,158.87,158.84,0.04664212]
[1724722368483,7.74,158.86,158.84,3.19364212]
[1724722369577,7.74,158.86,158.84,0.04664212]
[1724722371473,3.1469,158.86,158.84,0.04664212]
[1724722371679,7.74,158.85,158.84,0.04664212]
[1724722372082,10.8869,158.85,158.84,0.04664212]
[1724722372978,3.1472,158.84,158.77,7.74]
[1724722373182,7.74,158.82,158.77,4.06]
[1724722373380,10.91659916,158.82,158.79,3.1479]
[1724722373984,10.91659916,158.82,158.79,3.18863105]
[1724722374288,7.78766978,158.82,158.79,3.18863105]
[1724722374475,7.78766978,158.82,158.8,3.1479]
[1724722374880,0.04766978,158.82,158.79,0.04063105]
[1724722375078,0.04766978,158.82,158.8,3.1477]
[1724722377680,0.04766978,158.82,158.79,3.18873105]
[1724722377879,7.78766978,158.82,158.79,3.18873105]
[1724722378381,7.74,158.8,158.79,0.04063105]
[1724722381388,7.74,158.8,158.75,68.5638259]
[1724722381599,7.74,158.78,158.75,68.5638259]
[1724722381793,3.1481,158.8,158.75,68.5638259]
[1724722382092,10.8881,158.8,158.75,68.5638259]
[1724722382285,3.1477,158.81,158.77,3.1484]
[1724722382485,3.1477,158.81,158.75,76.3038259]
[1724722382685,3.19594554,158.81,158.77,0.04661668]
[1724722383491,0.04824554,158.81,158.77,7.78661668]
[1724722385389,0.04824554,158.81,158.8,3.1479]
[1724722387990,0.04824554,158.81,158.79,3.1481]
[1724722388194,7.74,158.8,158.77,0.04661668]
[1724722388596,7.74,158.8,158.78,3.1483]
[1724722389001,7.74,158.79,158.77,0.04661668]
[1724722389302,7.74,158.78,158.7,11.58894986]
[1724722389596,7.74,158.75,158.7,3.1497]
[1724722389901,3.2191771,158.74,158.69,4.06]
[1724722390101,10.8889,158.75,158.69,4.06]
[1724722390696,0.0474737,158.74,158.71,3.1497]
[1724722391291,0.0474737,158.74,158.72,3.1495]
[1724722393901,0.0474737,158.74,158.71,3.1496]
[1724722395598,0.0474737,158.74,158.72,3.1495]
[1724722396196,0.0474737,158.74,158.73,3.1493]
[1724722396495,6.303,158.93,158.73,19.36]
[1724722396496,19.36,158.82,158.73,19.36]
[1724722396701,3.1475,158.82,158.76,3.1487]
[1724722397403,3.1475,158.82,158.77,3.1484]
[1724722397599,19.36,158.84,158.77,0.04433054]
[1724722397600,0.04411388,158.81,158.77,0.04433054]
[1724722397903,0.04411388,158.81,158.8,3.1479]
[1724722400598,0.04411388,158.81,158.78,3.1481]
[1724722402303,0.04411388,158.81,158.78,3.1483]
[1724722402504,0.04411388,158.81,158.77,0.04433054]
[1724722403008,0.04411388,158.81,158.78,3.1482]
[1724722403209,0.04411388,158.81,158.77,0.04433054]
[1724722403411,0.04411388,158.81,158.77,19.40433054]
[1724722403800,0.04411388,158.81,158.8,3.1479]
[1724722411316,1.3248,158.87,158.79,19.34]
[1724722411911,1.3248,158.87,158.83,3.1472]
[1724722413017,1.36962141,158.87,158.83,0.04372981]
[1724722413606,4.51622141,158.87,158.83,0.04372981]
[1724722414616,4.51622141,158.87,158.83,3.19102981]
[1724722415718,1.36962141,158.87,158.84,3.1471]
[1724722416712,4.51612141,158.87,158.84,3.1471]
[1724722420230,4.51612141,158.87,158.83,0.04372981]
[1724722420231,19.34,158.85,158.83,0.04372981]
[1724722420426,19.34,158.85,158.76,71.66382632]
[1724722420737,19.34,158.82,158.76,71.66382632]
[1724722421236,19.34,158.82,158.79,3.148]
[1724722421422,19.34,158.82,158.76,67.62382632]
[1724722421730,22.53273697,158.82,158.79,0.04006193]
[1724722423025,19.38513697,158.82,158.79,3.18816193]
[1724722424233,19.38513697,158.82,158.79,0.04006193]
[1724722425928,19.38513697,158.82,158.79,3.18816193]
[1724722426325,22.53263697,158.82,158.79,3.18816193]
[1724722427031,22.53263697,158.82,158.79,0.04006193]
[1724722427441,3.1477,158.81,158.79,0.04006193]
[1724722429939,4.3992,158.81,158.79,0.04006193]
[1724722430138,6.23653636,158.8,158.79,0.04006193]
[1724722430342,3.1479,158.8,158.79,0.04006193]
[1724722430834,6.35618993,158.8,158.79,0.04006193]
[1724722434136,14.09618993,158.8,158.79,0.04006193]
[1724722439342,3.20828993,158.8,158.79,0.04006193]
[1724722439543,8.9915,158.81,158.79,0.04006193]
[1724722439942,7.74,158.81,158.79,0.04006193]
[1724722440244,10.91216372,158.8,158.79,0.04006193]
[1724722440435,7.74,158.8,158.79,0.04006193]
[1724722440843,10.8879,158.8,158.79,0.04006193]
[1724722441039,14.03172159,158.8,158.79,0.04006193]
[1724722441645,0.04513697,158.82,158.79,0.04006193]
[1724722442143,0.04513697,158.82,158.8,3.1478]
[1724722446257,7.74,158.81,158.79,0.04006193]
[1724722446450,7.74,158.8,158.79,0.04006193]
[1724722446645,7.74,158.81,158.79,0.04006193]
[1724722446953,10.8877,158.81,158.79,0.04006193]
[1724722450650,7.74,158.81,158.79,3.18816193]
[1724722451254,7.74,158.81,158.79,0.04006193]
[1724722451851,7.78513697,158.82,158.79,3.18806193]
[1724722452848,10.93263697,158.82,158.79,3.18806193]
[1724722454360,7.74,158.8,158.79,3.18806193]
[1724722455250,0.04513697,158.82,158.81,3.1477]
[1724722455560,0.04513697,158.82,158.79,0.04006193]
[1724722455752,7.78513697,158.82,158.79,3.18796193]
[1724722456155,7.78513697,158.82,158.79,0.04006193]
[1724722456360,7.78513697,158.82,158.79,3.18806193]
[1724722456558,7.78513697,158.82,158.79,0.04006193]
[1724722457457,7.74,158.8,158.79,0.04006193]
[1724722459958,7.74,158.81,158.79,0.04006193]
[1724722462169,7.74,158.81,158.79,3.18806193]
[1724722462357,0.04513697,158.82,158.79,0.04006193]
[1724722463459,0.04513697,158.82,158.8,3.1479]
[1724722463964,0.04513697,158.82,158.81,3.1477]
[1724722468870,0.04513697,158.82,158.79,3.18796193]
[1724722471171,0.04513697,158.82,158.8,3.1478]
[1724722471370,0.04513697,158.82,158.79,0.04006193]
[1724722471670,0.04513697,158.82,158.79,7.78006193]
[1724722472472,0.04513697,158.82,158.81,3.1477]
[1724722478573,0.04513697,158.82,158.81,10.8877]
[1724722480570,3.0888591,158.88,158.84,3.1469]
[1724722480776,7.74,158.89,158.83,7.74]
[1724722481068,10.8863,158.89,158.83,7.74]
[1724722481274,10.8863,158.89,158.81,7.74]
[1724722481275,3.18249833,158.88,158.81,7.74]
[1724722481473,6.32879833,158.88,158.81,7.74]
[1724722481681,0.04810939,158.86,158.83,0.04330613]
[1724722482367,0.04810939,158.86,158.84,3.147]
[1724722483078,0.04810939,158.86,158.85,3.1469]
[1724722486872,0.04810939,158.86,158.83,0.04330613]
[1724722487377,0.04810939,158.86,158.84,3.1471]
[1724722492181,0.04810939,158.86,158.85,3.1469]
[1724722505103,0.04810939,158.86,158.85,10.8869]
[1724722505292,1.2055,158.91,158.85,7.74]
[1724722505496,1.2055,158.91,158.87,7.74]
[1724722506005,1.2055,158.91,158.87,10.8864]
[1724722506309,7.74,158.9,158.87,0.04823319]
[1724722506504,10.886,158.9,158.87,0.04823319]
[1724722507101,7.74,158.88,158.87,0.04823319]
[1724722508001,10.8863,158.88,158.87,0.04823319]
[1724722510006,3.1463,158.88,158.87,0.04823319]
[1724722510303,10.8863,158.88,158.87,0.04823319]
[1724722511305,8.99251039,158.91,158.87,0.04823319]
[1724722512406,12.13841039,158.91,158.87,3.19473319]
[1724722513213,8.99251039,158.91,158.88,3.1463]
[1724722513416,1.25251039,158.91,158.88,3.1463]
[1724722513804,7.74,158.9,158.88,3.1463]
[1724722514105,7.74,158.9,158.87,0.04823319]
[1724722514106,7.74,158.89,158.87,0.04823319]
[1724722517013,7.74,158.89,158.87,3.19473319]
[1724722517209,7.74,158.9,158.87,3.19473319]
[1724722518314,1.25251039,158.91,158.87,0.04823319]
[1724722518615,0.04701039,158.91,158.87,0.04823319]
[1724722518815,0.04701039,158.91,158.87,7.78823319]
[1724722519114,0.04701039,158.91,158.89,3.1461]
[1724722519614,0.04701039,158.91,158.9,7.74]
[1724722519803,7.74,159.0,158.9,4.02]
[1724722520114,3.92333877,158.99,158.93,7.74]
[1724722520309,3.1442,158.99,158.93,7.74]
[1724722520608,3.1442,158.99,158.94,3.145]
[1724722520909,3.1442,158.99,158.95,0.04798555]
[1724722520910,0.04796215,158.98,158.95,0.04798555]
[1724722521814,0.04796215,158.98,158.95,3.19288555]
[1724722523617,0.04796215,158.98,158.96,3.1447]
[1724722526017,0.04796215,158.98,158.97,3.1445]
[1724722528912,0.04796215,158.98,158.96,3.1447]
[1724722531910,0.04796215,158.98,158.97,3.1445]
[1724722533515,0.04796215,158.98,158.97,10.8845]
[1724722538619,0.04796215,158.98,158.97,3.1445]
[1724722538823,0.04796215,158.98,158.95,0.04798555]
[1724722540022,3.19236215,158.98,158.95,0.04798555]
[1724722540221,0.04796215,158.98,158.95,0.04798555]
[1724722540428,0.04796215,158.98,158.96,3.1446]
[1724722540719,0.04796215,158.98,158.97,7.74]
[1724722541121,0.04796215,158.98,158.97,10.8845]
[1724722545423,0.04796215,158.98,158.95,0.04798555]
[1724722546026,0.04796215,158.98,158.96,3.1446]
[1724722547629,0.04796215,158.98,158.97,3.1445]
[1724722553432,7.78796215,158.98,158.95,0.04798555]
[1724722553819,0.04796215,158.98,158.95,0.04798555]
[1724722554020,3.1447,158.96,158.95,0.04798555]
[1724722554228,6.36571163,158.96,158.95,0.04798555]
[1724722554726,7.65531163,158.96,158.95,0.04798555]
[1724722555526,3.1453,158.94,158.89,4.02]
[1724722555734,10.8853,158.94,158.89,7.1661]
[1724722556038,4.51061163,158.96,158.89,7.1661]
[1724722556039,1.2896,158.96,158.9,7.74]
[1724722556728,0.04412555,158.95,158.91,3.18823544]
[1724722556926,0.04412555,158.95,158.91,0.04263544]
[1724722558335,0.04412555,158.95,158.91,3.18833544]
[1724722558535,3.1455,158.92,158.91,0.04263544]
[1724722558729,7.74,158.93,158.91,0.04263544]
[1724722558928,3.1455,158.92,158.91,0.04263544]
[1724722559326,10.8855,158.92,158.84,4.02]
[1724722559650,7.74,158.89,158.85,3.1469]
[1724722560127,3.1459,158.91,158.85,3.1469]
[1724722560327,19.33,158.92,158.82,19.33]
[1724722560528,20.6339,158.9,158.82,4.02]
[1724722560730,20.67620582,158.9,158.86,0.04232768]
[1724722561031,3.1462,158.89,158.86,0.04232768]
[1724722561242,20.67620582,158.9,158.86,0.04232768]
[1724722561427,19.33,158.88,158.86,0.04232768]
[1724722561624,3.1465,158.87,158.86,0.04232768]
[1724722562836,19.33,158.88,158.86,0.04232768]
[1724722563137,3.1463,158.89,158.86,0.04232768]
[1724722563534,3.1464,158.88,158.86,0.04232768]
[1724722565429,20.67620582,158.9,158.86,0.04232768]
[1724722566834,3.1464,158.88,158.86,0.04232768]
[1724722567139,6.35985632,158.88,158.86,0.04232768]
[1724722567436,3.1464,158.88,158.86,0.04232768]
[1724722567837,6.26259332,158.88,158.86,0.04232768]
[1724722570436,20.67620582,158.9,158.86,0.04232768]
[1724722571431,23.82230582,158.9,158.86,3.18892768]
[1724722574141,1.34620582,158.9,158.86,0.04232768]
[1724722574339,0.04230582,158.9,158.86,0.04232768]
[1724722574644,0.04230582,158.9,158.87,3.1465]
[1724722574845,3.1465,158.87,158.86,0.04232768]
[1724722575144,20.6261,158.89,158.86,0.04232768]
[1724722575544,19.33,158.87,158.86,0.04232768]
[1724722575839,22.53865168,158.87,158.77,4.02]
[1724722576045,19.33,158.85,158.77,4.02]
[1724722576738,0.04327332,158.83,158.79,0.04072431]
[1724722576938,3.19057332,158.83,158.79,0.04072431]
[1724722577540,6.37467381,158.83,158.79,0.04072431]
[1724722578538,0.04327332,158.83,158.79,0.04072431]
[1724722578735,0.04327332,158.83,158.81,19.33]
[1724722579347,0.04327332,158.83,158.82,3.1475]
[1724722580546,7.78327332,158.83,158.79,0.04072431]
[1724722580741,7.74,158.81,158.79,0.04072431]
[1724722581143,3.1479,158.8,158.79,0.04072431]
[1724722581346,34.17418257,158.8,158.74,3.1491]
[1724722581540,7.74,158.76,158.74,3.1491]
[1724722582050,22.5017698,158.79,158.74,3.1491]
[1724722582352,25.6500698,158.79,158.74,3.1491]
[1724722582648,0.04621709,158.78,158.75,0.04214105]
[1724722583251,19.36,158.77,158.75,0.04214105]
[1724722584349,22.5085,158.77,158.75,0.04214105]
[1724722586643,19.36,158.77,158.75,0.04214105]
[1724722589250,0.04621709,158.78,158.75,0.04214105]
[1724722590347,0.04621709,158.78,158.76,3.1487]
[1724722591463,0.04621709,158.78,158.77,3.1485]
[1724722591856,5.2323,158.87,158.76,19.36]
[1724722592057,5.2323,158.87,158.75,0.04214105]
[1724722592058,24.5923,158.87,158.77,19.36]
[1724722592458,1.2686,158.86,158.77,19.36]
[1724722592655,3.147,158.85,158.77,19.36]
[1724722592852,1.2686,158.86,158.77,19.36]
[1724722593051,0.04081502,158.83,158.79,0.04316794]
[1724722593257,0.04081502,158.83,158.81,3.1476]
[1724722593863,0.04081502,158.83,158.82,3.1475]
[1724722598166,0.04081502,158.83,158.79,4.06316794]
[1724722599463,0.04081502,158.83,158.82,3.1475]
[1724722601272,0.04081502,158.83,158.81,3.1476]
[1724722601473,0.04081502,158.83,158.79,0.04316794]
[1724722602863,0.04081502,158.83,158.81,3.1475]